bitfinex-derivatives/quotes_BNBF0:USTF0_20251002
["timestamp","ask_amount","ask_price","bid_price","bid_amount"]
[1759422789041,0.84629776,1062.4,1060.3,0.61198828]
[1759422789238,0.84629776,1062.4,1060.4,0.61198828]
[1759422790041,0.84629776,1062.4,1060.3,0.61198828]
[1759422791838,0.84629776,1062.5,1060.3,0.61198828]
[1759422792038,2.11574436,1062.5,1060.3,0.61198828]
[1759422792340,0.84629776,1062.2,1060.1,2.51964684]
[1759422792839,0.84629776,1062.3,1060.1,1.90765856]
[1759422793146,0.84629776,1062.2,1060.1,1.90765856]
[1759422797149,0.84629776,1062.3,1060.1,1.90765856]
[1759422798845,0.84629776,1062.0,1060.1,2.51964684]
[1759422799045,0.84629776,1062.0,1060.2,0.61198828]
[1759422799249,0.84629776,1062.1,1060.2,0.61198828]
[1759422800245,0.84629776,1062.1,1060.1,1.90765856]
[1759422800246,0.84629776,1062.0,1060.3,0.61198828]
[1759422803745,0.84629776,1062.1,1060.3,0.61198828]
[1759422806346,0.84629776,1062.0,1060.4,0.61198828]
[1759422807352,0.84629776,1061.9,1060.3,0.61198828]
[1759422807548,0.84629776,1061.7,1060.3,0.61198828]
[1759422807752,0.84629776,1061.6,1060.3,0.61198828]
[1759422808153,0.84629776,1061.6,1060.2,0.61198828]
[1759422808353,0.84629776,1061.7,1060.2,0.61198828]
[1759422809350,0.84629776,1061.6,1060.2,0.61198828]
[1759422811457,0.84629776,1061.7,1060.2,0.61198828]
[1759422812057,0.84629776,1061.7,1060.1,2.51964684]
[1759422813154,0.84629776,1061.7,1060.2,0.61198828]
[1759422813353,0.84629776,1061.7,1060.1,2.51964684]
[1759422813652,0.84629776,1061.7,1060.2,0.61198828]
[1759422814154,0.84629776,1061.7,1060.1,2.51964684]
[1759422814358,0.84629776,1061.7,1060.2,0.61198828]
[1759422814558,0.84629776,1061.7,1060.1,2.51964684]
[1759422815059,0.84629776,1061.8,1060.1,2.51964684]
[1759422816059,0.84629776,1061.9,1060.1,2.51964684]
[1759422816355,0.84629776,1061.8,1060.1,2.51964684]
[1759422816657,0.84629776,1061.9,1060.2,0.61198828]
[1759422817357,0.84629776,1061.6,1060.1,2.51964684]
[1759422821665,0.84629776,1061.7,1060.1,1.90765856]
[1759422821965,0.84629776,1061.6,1060.1,1.90765856]
[1759422822261,0.84629776,1061.5,1060.1,1.90765856]
[1759422822866,0.84629776,1061.6,1060.1,1.90765856]
[1759422823061,0.84629776,1061.5,1060.1,1.90765856]
[1759422823262,0.84629776,1061.3,1060.1,1.90765856]
[1759422823463,0.84629776,1061.2,1060.1,1.90765856]
[1759422824166,0.84629776,1061.3,1060.1,1.90765856]
[1759422824366,0.84629776,1061.2,1060.1,1.90765856]
[1759422826168,0.84629776,1061.8,1060.1,1.90765856]
[1759422827269,0.84629776,1061.9,1060.1,1.90765856]
[1759422827466,0.84629776,1061.8,1060.1,1.90765856]
[1759422827666,0.84629776,1061.9,1060.1,1.90765856]
[1759422828268,0.84629776,1061.2,1060.1,1.90765856]
[1759422829172,0.84629776,1061.3,1060.1,1.90765856]
[1759422829873,0.84629776,1061.6,1060.1,1.90765856]
[1759422830169,0.84629776,1061.7,1060.1,1.90765856]
[1759422830374,0.84629776,1061.6,1060.1,1.90765856]
[1759422830774,0.84629776,1061.7,1060.1,1.90765856]
[1759422831275,0.84629776,1061.8,1060.1,1.90765856]
[1759422831776,0.84629776,1061.6,1060.1,1.90765856]
[1759422833274,0.84629776,1061.5,1060.1,1.90765856]
[1759422833975,1.2694466,1061.8,1060.1,1.90765856]
[1759422833976,0.84629776,1061.6,1060.1,1.90765856]
[1759422834876,0.84629776,1061.5,1060.1,1.90765856]
[1759422835074,0.84629776,1061.6,1060.1,1.90765856]
[1759422835374,1.2694466,1061.8,1060.1,1.90765856]
[1759422835375,0.84629776,1061.5,1060.1,1.90765856]
[1759422836078,0.84629776,1061.9,1060.1,1.90765856]
[1759422836679,0.84629776,1061.6,1060.1,1.90765856]
[1759422837176,0.84629776,1061.5,1060.1,1.90765856]
[1759422837476,0.84629776,1062.2,1060.1,1.90765856]
[1759422838179,0.84629776,1062.1,1060.1,1.90765856]
[1759422838388,0.84629776,1061.9,1060.1,1.90765856]
[1759422838876,0.84629776,1061.8,1060.1,1.90765856]
[1759422840076,0.84629776,1061.7,1060.1,1.90765856]
[1759422843277,0.84629776,1061.9,1060.1,1.90765856]
[1759422843681,0.84629776,1061.8,1060.1,1.90765856]
[1759422845182,0.84629776,1061.7,1060.1,1.90765856]
[1759422845784,0.84629776,1061.8,1060.1,1.90765856]
[1759422846185,0.84629776,1061.7,1060.1,1.90765856]
[1759422849388,0.84629776,1061.9,1060.1,1.90765856]
[1759422850490,0.84629776,1061.8,1060.1,1.90765856]
[1759422853294,0.84629776,1061.7,1060.1,1.90765856]
[1759422854400,0.84629776,1061.8,1060.1,1.90765856]
[1759422858199,0.84629776,1061.9,1060.1,1.90765856]
[1759422858498,0.84629776,1061.8,1060.1,1.90765856]
[1759422859203,0.84629776,1061.9,1060.1,1.90765856]
[1759422859603,2.9620421,1063.8,1060.1,2.532324]
[1759422859604,0.84629776,1061.8,1060.1,2.532324]
[1759422860104,0.84629776,1062.5,1060.1,2.532324]
[1759422862099,0.84629776,1062.6,1060.1,2.532324]
[1759422863004,0.84629776,1062.4,1060.1,2.532324]
[1759422863205,0.84629776,1062.3,1060.2,0.62466544]
[1759422863501,0.84629776,1062.0,1060.3,0.62466544]
[1759422863705,0.84629776,1062.0,1060.1,2.532324]
[1759422869202,0.84629776,1061.9,1060.1,2.532324]
[1759422869907,0.16396803,1062.0,1060.1,1.90765856]
[1759422870204,0.84629776,1061.9,1060.1,1.90765856]
[1759422872009,0.84629776,1061.8,1060.1,1.90765856]
[1759422873505,0.84629776,1061.7,1060.1,1.90765856]
[1759422873710,0.84629776,1061.8,1060.1,1.90765856]
[1759422874408,1.01026579,1062.0,1060.1,2.532324]
[1759422875613,0.16396803,1062.0,1060.1,2.532324]
[1759422876014,1.01026579,1062.0,1060.1,2.532324]
[1759422876214,0.16396803,1062.0,1060.1,2.532324]
[1759422877012,0.16396803,1062.0,1060.2,0.62466544]
[1759422877211,0.16396803,1062.0,1060.1,2.532324]
[1759422878913,0.16396803,1062.0,1060.2,0.62466544]
[1759422879118,0.16396803,1062.0,1060.1,2.532324]
[1759422882816,0.16396803,1062.0,1060.2,0.62466544]
[1759422883315,1.01026579,1062.0,1060.1,2.532324]
[1759422883716,0.84629776,1061.9,1060.1,2.532324]
[1759422885321,0.84629776,1061.9,1060.1,1.90765856]
[1759422885721,0.84629776,1061.8,1060.1,1.90765856]
[1759422886319,0.84629776,1061.6,1060.1,1.90765856]
[1759422889124,0.84629776,1061.8,1060.1,1.90765856]
[1759422891920,0.84629776,1061.9,1060.1,1.90765856]
[1759422893621,0.84629776,1061.8,1060.1,1.90765856]
[1759422895822,0.84629776,1061.7,1060.1,1.90765856]
[1759422900830,0.84629776,1061.6,1060.1,1.90765856]
[1759422903130,0.84629776,1061.6,1060.1,2.532324]
[1759422903330,0.84629776,1061.5,1060.1,2.532324]
[1759422905636,0.84629776,1061.7,1060.1,1.90765856]
[1759422905936,0.84629776,1061.6,1060.1,1.91391472]
[1759422906231,0.84629776,1061.6,1060.1,1.91791472]
[1759422907334,0.84629776,1061.5,1060.1,1.91791472]
[1759422911337,0.84629776,1061.6,1060.1,1.91791472]
[1759422911535,0.84629776,1061.5,1060.1,1.91791472]
[1759422912434,0.84629776,1061.6,1060.1,1.91791472]
[1759422916741,0.16396803,1062.0,1060.1,1.91791472]
[1759422916742,0.84629776,1061.7,1060.1,2.54258016]
[1759422917641,0.84629776,1061.8,1060.2,0.62466544]
[1759422918639,0.84629776,1061.8,1060.1,2.54258016]
[1759422918839,0.84629776,1061.7,1060.2,0.62466544]
[1759422919242,0.84629776,1061.6,1060.1,2.54258016]
[1759422921045,0.84629776,1061.5,1060.1,2.54258016]
[1759422921550,0.84629776,1061.5,1060.1,1.91791472]
[1759422922955,0.84629776,1061.5,1060.1,2.54258016]
[1759422926859,0.84629776,1061.6,1060.1,1.91791472]
[1759422928557,0.84629776,1061.6,1060.1,2.54258016]
[1759422929255,0.84629776,1061.5,1060.1,1.91791472]
[1759422930357,0.84629776,1061.4,1060.1,1.91791472]
[1759422931555,0.84629776,1061.3,1060.1,1.91791472]
[1759422932258,0.84629776,1061.2,1060.1,1.91791472]
[1759422933159,1.2694466,1061.4,1060.1,1.91791472]
[1759422933160,0.84629776,1061.1,1060.1,1.91791472]
[1759422933657,0.84629776,1061.2,1060.1,1.91791472]
[1759422933862,0.84629776,1061.0,1060.1,1.91791472]
[1759422934162,0.84629776,1061.1,1060.1,1.91791472]
[1759422936463,0.84629776,1061.0,1060.1,1.91791472]
[1759422936664,0.84629776,1060.9,1060.1,1.91791472]
[1759422937661,0.84629776,1060.8,1060.1,1.91791472]
[1759422940062,0.84629776,1060.8,1060.1,1.91391472]
[1759422940365,0.84629776,1060.9,1060.1,1.91391472]
[1759422942265,0.84629776,1060.4,1058.6,0.62466544]
[1759422942467,0.84629776,1060.4,1059.4,0.16413043]
[1759422942668,0.84629776,1060.4,1059.5,1.88632468]
[1759422944166,0.84629776,1060.5,1059.5,1.88632468]
[1759422946170,0.84629776,1060.6,1059.5,1.88632468]
[1759422946669,0.84629776,1060.5,1059.5,1.88632468]
[1759422947565,2.1157444,1061.4,1059.5,1.88632468]
[1759422947566,0.84629776,1060.4,1059.5,1.88632468]
[1759422947769,0.84629776,1060.6,1059.5,1.88632468]
[1759422948066,0.84629776,1060.3,1059.5,1.88632468]
[1759422948366,0.84629776,1060.5,1059.5,1.88632468]
[1759422950266,0.84629776,1060.6,1059.5,1.88632468]
[1759422955377,0.84629776,1060.5,1059.5,1.88632468]
[1759422956174,0.84629776,1060.4,1059.5,1.88632468]
[1759422956674,0.84629776,1060.5,1059.5,1.88632468]
[1759422958080,0.84629776,1060.6,1059.5,1.88632468]
[1759422958975,0.84629776,1060.7,1059.5,1.88632468]
[1759422960381,0.84629776,1060.8,1059.5,1.88632468]
[1759422960878,0.84629776,1060.9,1059.5,1.88632468]
[1759422961381,0.84629776,1060.8,1059.5,1.88632468]
[1759422961982,0.84629776,1060.5,1059.5,1.88632468]
[1759422962684,0.84629776,1060.4,1059.5,1.88632468]
[1759422963479,0.84629776,1060.3,1059.5,1.88632468]
[1759422963982,0.84629776,1060.2,1059.5,1.88632468]
[1759422964179,0.84629776,1060.3,1059.5,1.88632468]
[1759422968286,0.84629776,1060.2,1059.5,1.88632468]
[1759422970790,0.84629776,1060.2,1057.0,0.62466544]
[1759422971090,0.84629776,1060.2,1058.8,0.1642288]
[1759422971289,0.84629776,1060.2,1058.8,0.004]
[1759422971488,0.84629776,1060.1,1058.8,0.004]
[1759422971689,0.84629776,1060.1,1058.8,0.16832961]
[1759422971989,0.84629776,1060.3,1058.9,1.8531169]
[1759422974290,0.84629776,1060.4,1058.9,1.8531169]
[1759422978897,0.84629776,1060.3,1058.9,1.8531169]
[1759422979394,0.84629776,1060.2,1058.9,1.8531169]
[1759422980092,0.84629776,1060.1,1058.9,1.8531169]
[1759422980997,0.84629776,1060.2,1058.9,1.8531169]
[1759422981194,0.84629776,1060.1,1058.9,1.8531169]
[1759422984099,0.84629776,1060.0,1058.9,1.8531169]
[1759422984797,0.84629776,1059.9,1058.9,1.8531169]
[1759422985596,0.84629776,1060.1,1058.9,1.8531169]
[1759422986102,0.84629776,1060.0,1058.9,1.8531169]
[1759422986296,0.84629776,1060.1,1058.9,1.8531169]
[1759422987099,0.84629776,1060.0,1058.9,1.8531169]
[1759422988804,0.84629776,1060.1,1058.9,1.8531169]
[1759422989203,0.84629776,1060.0,1058.9,1.8531169]
[1759422990409,0.84629776,1060.1,1058.9,1.8531169]
[1759422991007,0.84629776,1060.2,1058.9,1.8531169]
[1759422991410,0.84629776,1060.1,1058.9,1.8531169]
[1759422991611,0.84629776,1060.0,1058.9,1.8531169]
[1759422991812,0.84629776,1060.1,1058.9,1.8531169]
[1759422993008,0.84629776,1060.2,1058.9,1.8531169]
[1759422993212,0.84629776,1060.1,1058.9,1.8531169]
[1759422995214,0.84629776,1060.0,1058.9,1.8531169]
[1759422997415,0.84629776,1059.9,1058.9,1.8531169]
[1759422998317,0.84629776,1059.7,1058.9,1.8531169]
[1759422998514,0.84629776,1059.6,1058.9,1.8531169]
[1759422999417,0.84629776,1059.5,1058.9,1.8531169]
[1759422999614,0.84629776,1059.6,1058.9,1.8531169]
[1759423000017,0.84629776,1059.5,1058.9,1.8531169]
[1759423001717,0.84629776,1059.6,1058.9,1.8531169]
[1759423001919,0.84629776,1059.5,1058.9,1.8531169]
[1759423002118,0.84629776,1059.4,1058.9,1.8531169]
[1759423002616,0.84629776,1059.3,1058.9,1.8531169]
[1759423005218,0.84629776,1059.1,1058.9,1.8531169]
[1759423005422,0.84629776,1059.2,1058.9,1.8531169]
[1759423007724,0.84629776,1059.5,1058.9,1.8531169]
[1759423009124,0.84629776,1059.6,1058.9,1.8531169]
[1759423010522,0.84629776,1059.6,1058.3,0.16431409]
[1759423010722,0.84629776,1059.3,1058.3,0.16431409]
[1759423011227,0.84629776,1059.3,1058.4,1.85630976]
[1759423011522,0.84629776,1059.3,1058.4,1.86030976]
[1759423011723,0.84629776,1059.7,1058.4,1.86030976]
[1759423012027,0.84629776,1059.8,1058.4,1.86030976]
[1759423013623,0.84629776,1059.7,1058.4,1.86030976]
[1759423014225,0.84629776,1059.6,1058.4,1.86030976]
[1759423014724,0.84629776,1059.7,1058.4,1.86030976]
[1759423014926,0.84629776,1059.6,1058.4,1.86030976]
[1759423019127,0.84629776,1059.5,1058.4,1.86030976]
[1759423021928,0.84629776,1059.4,1058.4,1.86030976]
[1759423022826,0.84629776,1059.5,1058.4,1.86030976]
[1759423023132,0.84629776,1059.6,1058.4,1.86030976]
[1759423023732,0.84629776,1059.3,1058.4,1.86030976]
[1759423025433,2.1157444,1061.0,1058.4,1.86030976]
[1759423025434,0.84629776,1059.5,1058.4,1.86030976]
[1759423028034,0.84629776,1059.3,1058.4,1.86030976]
[1759423028633,0.84629776,1059.2,1058.4,1.86030976]
[1759423030038,0.84629776,1059.4,1058.4,1.86030976]
[1759423030336,0.84629776,1059.3,1058.4,1.86030976]
[1759423030538,0.84629776,1059.4,1058.4,1.86030976]
[1759423030838,0.84629776,1059.3,1058.4,1.86030976]
[1759423031333,0.84629776,1059.4,1058.4,1.86030976]
[1759423033437,0.84629776,1059.5,1058.4,1.86030976]
[1759423037137,0.84629776,1059.6,1058.4,1.86030976]
[1759423039739,0.84629776,1059.5,1058.4,1.86030976]
[1759423039944,0.84629776,1059.4,1058.4,1.86030976]
[1759423040241,0.84629776,1059.3,1058.4,1.86030976]
[1759423040439,0.84629776,1059.1,1058.4,1.86030976]
[1759423041046,0.84629776,1059.0,1058.4,1.86030976]
[1759423041247,0.84629776,1059.1,1058.4,1.86030976]
[1759423043647,0.84629776,1059.7,1058.4,1.86030976]
[1759423043952,0.84629776,1058.7,1058.4,1.86030976]
[1759423044250,0.84629776,1058.8,1058.4,1.86030976]
[1759423045149,0.84629776,1058.8,1057.0,2.54024656]
[1759423045350,0.84629776,1058.7,1057.0,1.92263491]
[1759423045545,0.84629776,1058.7,1057.6,0.16441618]
[1759423045752,0.84629776,1058.7,1057.6,0.004]
[1759423045950,0.84629776,1058.7,1057.6,0.16847252]
[1759423046246,0.84629776,1058.7,1057.7,1.88195461]
[1759423047048,0.84629776,1058.6,1057.7,1.88195461]
[1759423047252,0.84629776,1058.7,1057.7,1.88195461]
[1759423047453,0.84629776,1058.6,1057.7,1.88195461]
[1759423048852,0.84629776,1058.5,1057.7,1.88195461]
[1759423052451,0.84629776,1058.7,1057.7,1.88195461]
[1759423054254,0.84629776,1058.5,1057.7,1.88195461]
[1759423054449,0.84629776,1058.3,1057.7,1.88195461]
[1759423054656,0.84629776,1058.4,1057.7,1.88195461]
[1759423058055,0.84629776,1058.3,1057.7,1.88195461]
[1759423059259,0.84629776,1058.5,1057.1,0.1644974]
[1759423059455,0.84629776,1058.3,1057.0,1.92263491]
[1759423059756,0.84629776,1058.2,1057.0,1.92263491]
[1759423059956,0.84629776,1058.3,1057.0,1.92263491]
[1759423060156,0.84629776,1058.4,1057.0,1.92263491]
[1759423062263,0.84629776,1058.3,1057.0,1.92263491]
[1759423063165,0.84629776,1058.4,1057.0,1.92263491]
[1759423063564,0.84629776,1058.8,1057.0,1.92263491]
[1759423063862,0.84629776,1058.6,1057.0,1.92263491]
[1759423064264,0.84629776,1058.7,1057.0,1.92263491]
[1759423065066,0.84629776,1058.9,1057.0,1.92263491]
[1759423065265,0.84629776,1058.6,1057.0,1.92263491]
[1759423065663,0.84629776,1058.4,1057.0,1.92263491]
[1759423065968,0.84629776,1058.3,1057.0,1.92263491]
[1759423066166,0.84629776,1058.4,1057.0,1.92263491]
[1759423067464,0.84629776,1058.5,1057.0,1.92263491]
[1759423067666,0.84629776,1058.6,1057.0,1.92263491]
[1759423067863,0.84629776,1058.5,1057.0,1.92263491]
[1759423068166,0.84629776,1058.6,1057.0,1.92263491]
[1759423068363,0.84629776,1058.7,1057.0,1.92263491]
[1759423068868,0.84629776,1058.6,1057.0,1.92263491]
[1759423069168,0.84629776,1058.7,1057.0,1.92263491]
[1759423069366,0.84629776,1058.6,1057.0,1.92263491]
[1759423069566,0.84629776,1058.7,1057.0,1.92263491]
[1759423070165,0.84629776,1058.8,1057.0,1.92263491]
[1759423070466,0.16451762,1058.3,1057.0,1.92263491]
[1759423076278,0.84629776,1058.8,1057.0,1.92263491]
[1759423076573,0.16447446,1058.6,1057.0,1.92263491]
[1759423077077,0.84629776,1058.9,1057.0,1.92263491]
[1759423077374,0.16445076,1058.9,1057.0,1.92263491]
[1759423077976,0.84629776,1059.3,1057.0,1.92263491]
[1759423078181,0.16441968,1059.1,1057.0,1.92263491]
[1759423078881,0.84629776,1059.9,1057.0,1.92263491]
[1759423079181,0.16440647,1059.2,1057.0,1.92263491]
[1759423091891,0.84629776,1059.1,1057.0,1.92263491]
[1759423092186,1.01070423,1059.2,1057.0,1.92263491]
[1759423092987,0.84629776,1059.1,1057.0,1.92263491]
[1759423093190,1.01070423,1059.2,1057.0,1.92263491]
[1759423093390,1.01070423,1059.2,1056.9,0.16451762]
[1759423093791,1.01070423,1059.2,1056.9,2.06269437]
[1759423094794,0.16440647,1059.2,1056.9,2.68030602]
[1759423095194,0.16440647,1059.2,1057.0,0.61761165]
[1759423095691,0.16440647,1059.2,1056.9,2.68030602]
[1759423096096,0.16440647,1059.2,1056.9,2.06269437]
[1759423099497,0.16440647,1059.2,1056.9,2.68030602]
[1759423101795,1.01070423,1059.2,1056.9,2.68030602]
[1759423103499,0.16440647,1059.2,1057.0,0.61761165]
[1759423103697,0.16440647,1059.2,1057.1,0.61761165]
[1759423103902,0.16440647,1059.2,1056.9,2.06269437]
[1759423104897,0.84629776,1059.1,1056.9,2.06269437]
[1759423106396,0.84629776,1059.0,1056.9,2.06269437]
[1759423106701,0.84629776,1058.8,1056.9,2.06269437]
[1759423107000,0.84629776,1059.1,1056.9,2.06269437]
[1759423107201,0.16440647,1059.2,1056.9,2.06269437]
[1759423109504,0.84629776,1059.0,1056.9,2.06269437]
[1759423111301,0.84629776,1059.1,1056.9,2.06269437]
[1759423112202,1.01070423,1059.2,1056.9,2.68030602]
[1759423114705,0.84629776,1059.1,1056.9,2.68030602]
[1759423114909,1.01070423,1059.2,1056.9,2.68030602]
[1759423115305,0.84629776,1059.1,1056.9,2.68030602]
[1759423115712,1.01070423,1059.2,1056.9,2.68030602]
[1759423118418,0.16440647,1059.2,1056.9,2.06269437]
[1759423119214,1.01070423,1059.2,1056.9,2.06269437]
[1759423119508,0.84629776,1059.1,1056.9,2.06269437]
[1759423119811,0.84629776,1058.8,1056.9,2.06269437]
[1759423120412,0.84629776,1058.7,1056.9,2.06269437]
[1759423120912,0.84629776,1058.8,1056.9,2.06269437]
[1759423121211,0.84629776,1058.7,1056.9,2.06269437]
[1759423122313,0.84629776,1058.6,1056.9,2.06269437]
[1759423126214,0.84629776,1058.5,1056.9,2.06269437]
[1759423129022,0.84629776,1058.4,1056.9,2.06269437]
[1759423132020,0.84629776,1058.3,1056.9,2.06269437]
[1759423133220,0.84629776,1058.4,1056.9,2.06269437]
[1759423133424,0.84629776,1058.5,1056.9,2.06269437]
[1759423136626,0.84629776,1058.4,1056.9,2.06269437]
[1759423136831,0.84629776,1058.5,1056.9,2.06269437]
[1759423137628,0.84629776,1058.6,1056.9,2.06269437]
[1759423138528,0.84629776,1058.7,1056.9,2.06269437]
[1759423139129,0.84629776,1058.6,1056.9,2.06269437]
[1759423139328,0.84629776,1058.7,1056.9,2.06269437]
[1759423139732,0.84629776,1058.7,1056.9,2.68030602]
[1759423140129,0.84629776,1058.7,1057.0,0.61761165]
[1759423141029,0.84629776,1058.8,1057.0,0.61761165]
[1759423141332,0.84629776,1058.7,1057.0,0.61761165]
[1759423142634,0.84629776,1058.7,1056.9,2.68030602]
[1759423142834,0.84629776,1058.6,1056.9,2.06269437]
[1759423144536,0.84629776,1058.7,1056.9,2.06269437]
[1759423145434,0.84629776,1058.7,1056.9,2.68030602]
[1759423145834,0.84629776,1058.6,1056.9,2.68030602]
[1759423146738,0.84629776,1058.6,1057.0,0.61761165]
[1759423149437,0.84629776,1058.7,1057.0,0.61761165]
[1759423149837,0.84629776,1058.6,1057.0,0.61761165]
[1759423150641,0.84629776,1058.7,1057.0,0.61761165]
[1759423150841,0.84629776,1058.6,1057.0,0.61761165]
[1759423151636,0.84629776,1058.7,1057.0,0.61761165]
[1759423152340,0.84629776,1058.8,1057.0,0.61761165]
[1759423153638,0.84629776,1058.6,1057.1,0.61761165]
[1759423159038,0.84629776,1058.7,1057.0,0.61761165]
[1759423160540,0.84629776,1058.7,1057.1,0.61761165]
[1759423160944,0.84629776,1058.7,1057.0,0.61761165]
[1759423161344,0.84629776,1058.6,1056.9,2.68030602]
[1759423161643,0.84629776,1058.4,1056.9,2.06269437]
[1759423162044,0.84629776,1058.3,1056.9,2.06269437]
[1759423162445,0.84629776,1058.5,1056.9,2.06269437]
[1759423162742,0.16440647,1059.2,1056.9,2.06269437]
[1759423162743,0.84629776,1058.3,1056.9,2.06269437]
[1759423163445,0.84629776,1058.5,1056.9,2.06269437]
[1759423164547,0.84629776,1058.4,1056.9,2.06269437]
[1759423164746,0.84629776,1058.5,1056.9,2.06269437]
[1759423165143,0.84629776,1058.4,1056.9,2.06269437]
[1759423165642,0.84629776,1058.3,1056.9,2.06269437]
[1759423166446,0.84629776,1058.1,1056.9,2.06269437]
[1759423166950,0.84629776,1058.2,1056.9,2.06269437]
[1759423167945,1.2694466,1058.4,1056.9,2.06269437]
[1759423167946,0.84629776,1058.4,1056.9,2.06269437]
[1759423168246,0.84629776,1058.6,1056.9,2.06269437]
[1759423168445,0.84629776,1058.7,1056.9,2.06269437]
[1759423170044,0.16440647,1059.2,1056.9,2.06269437]
[1759423170045,0.84629776,1058.6,1056.9,2.06269437]
[1759423170950,0.84629776,1058.7,1056.9,2.06269437]
[1759423173150,0.84629776,1058.6,1056.9,2.06269437]
[1759423173550,0.84629776,1058.5,1056.9,2.06269437]
[1759423174546,0.84629776,1058.1,1056.9,2.06269437]
[1759423177552,0.84629776,1058.0,1056.9,2.06269437]
[1759423178853,0.84629776,1057.9,1056.9,2.06269437]
[1759423180749,0.84629776,1058.1,1056.9,2.06269437]
[1759423184155,0.84629776,1058.0,1056.9,2.06269437]
[1759423184357,0.84629776,1057.9,1056.9,2.06269437]
[1759423186954,0.84629776,1058.1,1056.9,2.06269437]
[1759423188358,0.84629776,1058.2,1056.9,2.06269437]
[1759423189259,0.84629776,1058.1,1056.9,2.06269437]
[1759423189758,0.84629776,1058.0,1056.9,2.06269437]
[1759423190560,0.84629776,1058.1,1056.9,1.89817675]
[1759423190756,0.84629776,1058.3,1056.9,1.89817675]
[1759423191056,0.84629776,1058.3,1056.9,2.06273404]
[1759423192858,0.84629776,1058.2,1056.9,2.06273404]
[1759423193356,0.84629776,1058.0,1056.9,2.06273404]
[1759423193561,0.84629776,1058.0,1056.9,1.89817675]
[1759423193762,0.84629776,1058.0,1056.9,2.06273171]
[1759423194963,0.84629776,1058.1,1056.9,2.06273171]
[1759423195459,0.84629776,1058.2,1056.9,2.06273171]
[1759423197365,0.84629776,1058.3,1056.9,2.06273171]
[1759423197866,0.84629776,1058.2,1056.9,2.06273171]
[1759423199262,0.84629776,1058.3,1056.9,2.06273171]
[1759423199464,0.84629776,1058.2,1056.9,2.06273171]
[1759423199865,0.84629776,1058.3,1056.9,2.06273171]
[1759423202266,0.84629776,1058.2,1056.9,2.06273171]
[1759423206671,0.84629776,1058.1,1056.9,2.06273171]
[1759423207065,1.2694466,1058.3,1056.9,2.06273171]
[1759423207066,0.84629776,1058.0,1056.9,2.06273171]
[1759423207670,0.84629776,1057.8,1056.9,1.89817675]
[1759423210075,0.84629776,1057.7,1056.9,1.89817675]
[1759423210276,0.84629776,1057.8,1056.9,1.89817675]
[1759423210678,0.84629776,1057.7,1056.9,1.89817675]
[1759423212576,0.84629776,1057.6,1056.9,1.89817675]
[1759423213378,0.84629776,1057.7,1056.9,1.89817675]
[1759423213576,0.84629776,1057.6,1056.9,1.89817675]
[1759423214577,0.84629776,1057.7,1056.9,1.89817675]
[1759423215580,0.84629776,1057.6,1056.9,1.89817675]
[1759423215881,0.84629776,1057.6,1057.0,1.88804841]
[1759423216080,0.84629776,1057.6,1057.0,1.89204841]
[1759423216880,0.84629776,1057.5,1057.0,1.89204841]
[1759423221283,0.84629776,1057.4,1057.0,1.89204841]
[1759423221485,0.84629776,1057.5,1057.0,1.89204841]
[1759423222186,0.84629776,1057.2,1057.0,1.89204841]
[1759423222687,0.84629776,1057.1,1057.0,1.89204841]
[1759423224884,0.84629776,1057.2,1057.0,1.88804841]
[1759423225083,0.84629776,1057.1,1057.0,1.88804841]
[1759423227889,0.84629776,1057.2,1057.0,1.88804841]
[1759423228691,0.84629776,1057.3,1057.0,1.88804841]
[1759423229089,0.84629776,1057.2,1057.0,1.88804841]
[1759423230288,0.84629776,1057.3,1057.0,1.88804841]
[1759423231191,0.84629776,1057.4,1057.0,1.88804841]
[1759423231788,0.84629776,1057.3,1057.0,1.88804841]
[1759423232291,0.84629776,1057.5,1057.0,1.88804841]
[1759423239599,0.84629776,1057.4,1057.0,1.88804841]
[1759423241394,0.84629776,1057.5,1057.0,1.88804841]
[1759423241597,0.84629776,1057.4,1057.0,1.88804841]
[1759423241998,0.84629776,1057.5,1057.0,1.88804841]
[1759423243898,0.84629776,1057.6,1057.0,1.88804841]
[1759423244095,0.84629776,1057.5,1057.0,1.88804841]
[1759423246297,0.84629776,1057.3,1057.0,1.88804841]
[1759423248296,0.84629776,1057.2,1057.0,1.88804841]
[1759423255208,0.84629776,1057.3,1057.0,1.88804841]
[1759423256102,0.84629776,1057.2,1057.0,1.88804841]
[1759423257509,0.84629776,1057.3,1057.0,1.88804841]
[1759423258106,0.84629776,1057.4,1057.0,1.88804841]
[1759423258610,0.84629776,1057.5,1057.0,1.88804841]
[1759423259204,0.84629776,1057.7,1057.0,1.88804841]
[1759423260715,0.84629776,1057.8,1057.0,1.88804841]
[1759423261312,0.84629776,1057.7,1057.0,1.88804841]
[1759423262011,0.84629776,1057.6,1057.0,1.88804841]
[1759423262216,0.84629776,1057.4,1057.0,1.88804841]
[1759423263420,0.84629776,1057.3,1057.0,1.88804841]
[1759423265217,0.84629776,1057.1,1057.0,1.88804841]
[1759423265618,0.84629776,1057.2,1057.0,1.88804841]
[1759423266314,0.84629776,1057.1,1057.0,1.88804841]
[1759423266616,0.84629776,1057.2,1057.0,1.88804841]
[1759423266819,0.84629776,1057.1,1057.0,1.88804841]
[1759423267418,1.2694466,1057.3,1057.0,1.88804841]
[1759423268320,0.84874667,1057.1,1057.0,1.88804841]
[1759423268520,1.2694466,1057.4,1057.0,1.88804841]
[1759423268521,0.84874667,1057.4,1057.0,1.88804841]
[1759423272119,0.84874667,1057.6,1057.0,1.88804841]
[1759423272321,0.84874667,1057.2,1057.0,1.88804841]
[1759423272818,0.84874667,1057.1,1057.0,1.88804841]
[1759423273624,1.2694466,1057.3,1057.0,1.88804841]
[1759423274525,1.2694466,1057.2,1057.0,1.88804841]
[1759423274720,1.2694466,1057.3,1057.0,1.88804841]
[1759423275021,1.2694466,1057.2,1057.0,1.88804841]
[1759423278731,0.8487559,1057.1,1057.0,1.88804841]
[1759423280027,0.8487559,1057.3,1057.0,1.88804841]
[1759423280226,0.8487559,1057.4,1057.0,1.88804841]
[1759423280826,0.8487559,1057.3,1057.0,1.88804841]
[1759423282433,0.8487559,1057.1,1057.0,1.88804841]
[1759423282833,1.2694466,1057.2,1057.0,1.88804841]
[1759423283133,1.2694466,1057.1,1057.0,1.88804841]
[1759423283330,0.16461256,1057.7,1057.0,1.88804841]
[1759423283732,1.27330996,1057.1,1057.0,1.88804841]
[1759423285432,0.16461256,1057.7,1057.0,1.88804841]
[1759423285433,1.27330996,1057.2,1057.0,1.88804841]
[1759423289638,1.27330996,1057.1,1057.0,1.88804841]
[1759423291741,0.84870418,1057.2,1055.5,0.62806538]
[1759423292041,0.84870418,1056.9,1056.0,0.16465578]
[1759423292337,0.84870418,1056.9,1056.1,1.86235858]
[1759423294641,0.84870418,1056.8,1056.1,1.86235858]
[1759423295043,0.84870418,1056.7,1056.1,1.86235858]
[1759423295643,0.84870418,1057.3,1056.1,1.86235858]
[1759423296044,0.84870418,1057.2,1056.1,1.86235858]
[1759423296740,0.84870418,1057.1,1056.1,1.86235858]
[1759423298243,0.84870418,1057.0,1056.1,1.86235858]
[1759423298648,0.84870418,1056.9,1056.1,1.86235858]